Cogmind - Beta 12 @@@ ROGUE MODE // 2024.01.29 @ 22:47:44 Player: Treadwheel Result: Destroyed by S-10 Pest with Light Assault Rifle Performance ------------- Evolutions (0) 0 Regions Visited (4) 800 Robots Destroyed (14) 70 Value Destroyed (380) 380 Prototype IDs (2) 40 Alien Tech Used (0) 0 Bonus (300) 300 TOTAL SCORE: 1590 Bonus ------- Aligned with FarCom 300 Cogmind --------- Core Integrity 0/250 Matter 300/300 Energy 145/160 System Corruption 7% Temperature Warm (114) Movement Walking (120) Location -9/Mines Parts ------- > --- POWER (1) -------- Light Nuclear Core > --- PROPULSION (2) --- Aluminum Leg Aluminum Leg > --- UTILITY (2) ------ Improved Heat Sink Sensor Array > --- WEAPON (2) ------- Particle Gun Particle Cannon > --- INVENTORY (5) ---- Reinforced Deuterium Engine Aluminum Leg Small Storage Unit Experimental Sensor Array Plasma Cutter Peak State ------------ > --- POWER ------------ Light Nuclear Core > --- PROPULSION ------- Aluminum Leg Aluminum Leg > --- UTILITY ---------- Improved Heat Sink Sensor Array > --- WEAPON ----------- Particle Gun Particle Cannon > --- INVENTORY -------- Aluminum Leg Small Storage Unit Experimental Sensor Array Assault Rifle Plasma Cutter [Rating: 14] Favorites ----------- Power Light Nuclear Core Engine Ion Engine Power Core Light Nuclear Core Propulsion Aluminum Leg Leg Aluminum Leg Utility Sensor Array Device Sensor Array Storage Large Storage Unit Processor Signal Interpreter Weapon Particle Cannon Energy Gun Particle Gun Energy Cannon Particle Cannon Ballistic Gun Assault Rifle Build | -11 -10 -10 -10 -9 ------- Run | Jun Mat Min Exi Min Slots Evolved . | . . . . . Power . | . . . . . Propulsion . | . . . . . Utility . | . . . . . Weapon . | . . . . . Parts Attached 25 | 7 7 10 1 . Power 4 | 2 . 1 1 . Engine 2 | 2 . . . . Core 2 | . . 1 1 . Reactor . | . . . . . Propulsion 9 | 2 2 5 . . Treads . | . . . . . Leg 9 | 2 2 5 . . Wheel . | . . . . . Hover . | . . . . . Flight . | . . . . . Utility 6 | 1 3 2 . . Device 4 | 1 1 2 . . Storage 1 | . 1 . . . Processor 1 | . 1 . . . Hackware . | . . . . . Protection . | . . . . . Artifact . | . . . . . Weapon 6 | 2 2 2 . . Energy Gun 3 | 1 1 1 . . Energy Cannon 1 | . 1 . . . Ballistic Gun 2 | 1 . 1 . . Ballistic Cannon . | . . . . . Launcher . | . . . . . Special Weapon . | . . . . . Impact Weapon . | . . . . . Slashing Weapon . | . . . . . Piercing Weapon . | . . . . . Special Melee Weapon . | . . . . . Unidentified Prototypes . | . . . . . Parts Lost 3 | . . 3 . . Power 1 | . . 1 . . Propulsion . | . . . . . Utility 1 | . . 1 . . Weapon 1 | . . 1 . . Highest Loss Streak 2 | . . 2 . . To Critical Strikes . | . . . . . Average Slot Usage (%) 97 | . 96 90 100 100 Engine 3 | . 14 2 . . Core 9 | . . 3 14 14 Leg 27 | . 27 28 28 28 Device 24 | . 14 26 28 28 Processor 2 | . 11 1 . . Energy Gun 12 | . 14 3 14 14 Energy Cannon 13 | . 10 14 14 14 Ballistic Gun 2 | . 4 10 . . Naked Turns . | . . . . . Heaviest Build 14 | 10 13 14 14 14 Greatest Support 20 | 20 20 20 20 20 Greatest Overweight (x) 1 | . 1 . . . Average Overweight (x) . | . . . . . Largest Inventory Capacity 15 | 5 15 5 5 5 Average Capacity 5 | 5 5 5 5 5 Most Carried 5 | 5 5 5 5 5 Average Carried 4 | 2 4 4 4 5 Final Capacity 5 | 5 5 5 5 5 Final Carried 5 | 5 5 5 5 5 Class Distribution -------------------- 76% | Scavenger-Mutant 13% | Scavenger-Skirmisher 10% | Mutant Dominant Class ---------------- Scavenger-Mutant | -10/Materials Scavenger-Mutant | -10/Mines Scavenger-Mutant | -10/Exiles Scavenger-Skirmisher | -9/Mines Resources | -11 -10 -10 -10 -9 ----------- Run | Jun Mat Min Exi Min Matter Collected 611 | 285 79 166 . 81 Remotely . | . . . . . Salvage Created 468 | 71 85 273 . 39 Parts 36 | 7 9 16 . 4 Haulers Intercepted . | . . . . . Recyclers Shooed . | . . . . . Parts Field Recycled . | . . . . . Retrieved Matter . | . . . . . Parts Self-Destructed . | . . . . . Prevented . | . . . . . Kills | -11 -10 -10 -10 -9 ------- Run | Jun Mat Min Exi Min Combat Hostiles Destroyed 11 | 1 1 6 . 3 Guns 6 | 1 1 2 . 2 Cannons 5 | . . 4 . 1 Classes Destroyed 4 | 2 1 . . 1 Tunneler 1 | 1 . . . . Watcher 2 | . 2 . . . Swarmer 3 | . . . . 3 Grunt 8 | 1 1 6 . . Best Kill Streak 3 | 2 2 2 . 3 Combat Bots Only 3 | 1 1 2 . 3 Max Kills in Single Turn 1 | 1 1 1 . 1 Gunslinging . | . . . . . Exploded . | . . . . . Melee . | . . . . . Uniques/NPCs Destroyed . | . . . . . Combat | -11 -10 -10 -10 -9 -------- Run | Jun Mat Min Exi Min Damage Taken 829 | 54 44 658 . 73 Core 254 | 11 12 211 . 20 Absorbed by Shields . | . . . . . Regen/Repaired (Parts) 18 | . 18 . . . Core Remaining (%) 95 | 95 . . . . Volleys Fired 32 | 5 4 19 . 4 Largest 2 | 2 2 2 . 2 Hottest 133 | 70 113 113 . 133 Shots Fired 64 | 10 8 35 2 9 Gun 38 | 10 7 16 . 5 Cannon 26 | . 1 19 2 4 Launcher . | . . . . . Special . | . . . . . Kinetic 21 | 5 3 13 . . Thermal 39 | 5 4 19 2 9 Explosive . | . . . . . Electromagnetic 4 | . 1 3 . . Robot Hit Streak 7 | 2 5 7 . 3 Robot Miss Streak 4 | 3 1 4 . 2 Penetration Max . | . . . . . Secondary Targets 1 | . 1 . . . Max Gunslinging Chain 1 | . 1 . . . Shots Hit Robots 37 | 5 6 22 . 4 Core Hits 19 | 2 3 11 . 3 Critical Kills 1 | 1 . . . . Critical Parts Destroyed . | . . . . . Critical Strikes 1 | 1 . . . . Destroy 1 | 1 . . . . Melee Attacks . | . . . . . Impact . | . . . . . Slashing . | . . . . . Piercing . | . . . . . Sneak Attacks . | . . . . . Combat Hostiles . | . . . . . Follow-up Attacks . | . . . . . Damage Inflicted 664 | 71 89 431 . 73 Guns 339 | 71 89 146 . 33 Cannons 284 | . . 244 . 40 Explosions 41 | . . 41 . . Melee . | . . . . . Ramming . | . . . . . Kinetic 173 | 35 25 113 . . Thermal 430 | 36 36 285 . 73 Explosive . | . . . . . Electromagnetic 61 | . 28 33 . . Impact . | . . . . . Slashing . | . . . . . Piercing . | . . . . . Highest Corruption 7 | . . 7 7 7 Average Corruption 7 | . . 7 7 7 Corruption Purged . | . . . . . Corruption Blocked . | . . . . . Effects 56 | . . 10 35 11 Message Errors 12 | . . . 9 3 Matter Fused 14 | . . 4 9 1 Heat Flow Errors 7 | . . 1 5 1 Energy Discharges 12 | . . 2 6 4 Data Loss (minor) 8 | . . 3 4 1 Misfires 3 | . . . 2 1 Overload Shots . | . . . . . Overflow Damage . | . . . . . Projectiles . | . . . . . Explosions . | . . . . . Melee . | . . . . . Knockbacks . | . . . . . Impact . | . . . . . Kinetic . | . . . . . Secondary . | . . . . . Self-Inflicted Damage 52 | . . 52 . . Shots 1 | . . 1 . . Rammed . | . . . . . Targets Rammed . | . . . . . Kicked . | . . . . . Crushed . | . . . . . Highest Temperature 249 | 75 51 177 249 154 Average Temperature 79 | 37 29 83 104 69 Received Heat Transfer 276 | 30 24 222 . . Siege Activations . | . . . . . Robots Corrupted . | . . . . . Combat Hostiles . | . . . . . Parts Fried . | . . . . . Impact Corruptions . | . . . . . Robots Melted . | . . . . . Combat Hostiles . | . . . . . Parts Melted . | . . . . . Heat Transferred 864 | 111 111 494 . 148 Parts Sabotaged . | . . . . . Parts Stolen . | . . . . . Parts Stripped . | . . . . . Power Chain Reactions 1 | . . 1 . . Missiles Intercepted . | . . . . . Alert | -11 -10 -10 -10 -9 ------- Run | Jun Mat Min Exi Min Peak Influence 143 | 25 114 143 . 60 Initial 16 | . 16 5 . . Average 49 | 4 65 86 . 1 Maximum Alert Level . | . . . . . Low Security (%) 100 | 100 100 100 . 100 Level 1 . | . . . . . Level 2 . | . . . . . Level 3 . | . . . . . Level 4 . | . . . . . Level 5 . | . . . . . High Security . | . . . . . Max Security . | . . . . . Squads Dispatched 1 | . 1 . . . Investigation . | . . . . . Extermination . | . . . . . Reinforcement 1 | . 1 . . . Assault . | . . . . . Garrison . | . . . . . Intercept . | . . . . . Searches Triggered . | . . . . . Construction Impeded . | . . . . . Haulers Reinforced . | . . . . . Active Scanning Responses . | . . . . . Cargo Convoy Interrupts . | . . . . . Stealth | -11 -10 -10 -10 -9 --------- Run | Jun Mat Min Exi Min Distress Signals . | . . . . . Communications Jammed . | . . . . . Distress Signals . | . . . . . Times Spotted 16 | 1 5 6 . 4 Peak Tracking Total 4 | 1 2 2 . 4 Tactical Retreats 1 | . 1 . . . Traps | -11 -10 -10 -10 -9 ------- Run | Jun Mat Min Exi Min Traps Triggered . | . . . . . Indirectly . | . . . . . Trap Hack Attempts . | . . . . . Triggered . | . . . . . Disarmed . | . . . . . Reprogrammed . | . . . . . Reused . | . . . . . Traps Extracted . | . . . . . Installed . | . . . . . Triggered . | . . . . . Machines | -11 -10 -10 -10 -9 ---------- Run | Jun Mat Min Exi Min Machines Disabled . | . . . . . Max in Single Turn . | . . . . . Machines Repaired . | . . . . . Machines Sabotaged . | . . . . . Overloaded Fab Kills . | . . . . . Hacking | -11 -10 -10 -10 -9 --------- Run | Jun Mat Min Exi Min Machines Accessed 7 | . 3 . 4 . Terminals 2 | . 2 . . . Fabricators . | . . . . . Repair Stations 1 | . 1 . . . Recycling Units . | . . . . . Scanalyzers . | . . . . . Garrison Access . | . . . . . Total Hacks 58 | . 9 . 49 . Successful 53 | . 4 . 49 . Failed 5 | . 5 . . . Catastrophic . | . . . . . Database Lockouts . | . . . . . Manual . | . . . . . Terminals 6 | . 6 . . . Fabricators . | . . . . . Repair Stations 3 | . 3 . . . Recycling Units . | . . . . . Scanalyzers . | . . . . . Garrison Access . | . . . . . Terminal Hacks 51 | . 2 . 49 . Record 49 | . . . 49 . Prototype ID Bank 1 | . 1 . . . Locate Traps 1 | . 1 . . . Fabricator Hacks . | . . . . . Repair Station Hacks 2 | . 2 . . . Scan Component 1 | . 1 . . . Repair 1 | . 1 . . . Recycling Unit Hacks . | . . . . . Scanalyzer . | . . . . . Garrison Access Hacks . | . . . . . Unauthorized Hacks . | . . . . . Terminals . | . . . . . Fabricators . | . . . . . Repair Stations . | . . . . . Recycling Units . | . . . . . Scanalyzers . | . . . . . Garrison Access . | . . . . . Data Cores Recovered . | . . . . . Used . | . . . . . Hacking Detections 3 | . 3 . . . Full Trace Events . | . . . . . Feedback Events . | . . . . . Feedback Blocked . | . . . . . Robot Schematics Acquired . | . . . . . Robots Built . | . . . . . Authchips . | . . . . . Time . | . . . . . Total Robot Build Rating . | . . . . . Part Schematics Acquired . | . . . . . Parts Built . | . . . . . Authchips . | . . . . . Time . | . . . . . Total Part Build Rating . | . . . . . Parts Repaired 1 | . 1 . . . Time 26 | . 26 . . . Parts Recycled . | . . . . . Recycled Matter . | . . . . . Retrieved Matter . | . . . . . Retrieved Components . | . . . . . Parts Scanalyzed . | . . . . . Part Schematics Acquired . | . . . . . Parts Damaged . | . . . . . Bothacking | -11 -10 -10 -10 -9 ------------ Run | Jun Mat Min Exi Min Used RIF Installer . | . . . . . Robots Hacked . | . . . . . Non-combat . | . . . . . Combat . | . . . . . Robot Hacks Applied . | . . . . . Relay Couplers Released . | . . . . . Fabnet Peak Effective % . | . . . . . Robots Rewired . | . . . . . Allies Hacked . | . . . . . Hacks Repelled . | . . . . . Allies | -11 -10 -10 -10 -9 -------- Run | Jun Mat Min Exi Min Total Allies 1 | . . 1 . . Largest Group 1 | . . 1 1 . Highest-Rated Group 31 | . . 31 31 . Highest-Rated Ally 31 | . . 31 31 . Total Orders . | . . . . . Ally Attacks 3 | . . 3 . . Total Damage 64 | . . 64 . . Kills 1 | . . 1 . . Allies Corrupted . | . . . . . Allies Melted . | . . . . . Intel | -11 -10 -10 -10 -9 ------- Run | Jun Mat Min Exi Min Robot Analysis Total . | . . . . . Derelict Logs Recovered 1 | . . 1 . . Drone Launches . | . . . . . Drone Recoveries . | . . . . . Exploration | -11 -10 -10 -10 -9 ------------- Run | Jun Mat Min Exi Min Turns Passed 2485 | 109 490 374 1171 341 Spaces Moved 1865 | 76 337 219 960 273 Core 16 | 16 . . . . Treads . | . . . . . Legs 1849 | 60 337 219 960 273 Wheels . | . . . . . Hover . | . . . . . Flight . | . . . . . Fastest Speed 50 | 50 120 120 120 120 Average Speed 119 | 105 120 120 120 120 Slowest Speed 190 | 120 190 120 120 120 Overloaded Moves . | . . . . . Propulsion Burnouts . | . . . . . Robots Hopped . | . . . . . Cave-ins Triggered 1 | . . 1 . . Exploration Rate (%) 51 | 5 53 46 93 59 Regions Visited 4 Branch Regions 3 Pre-discovered Areas 3 | . . 1 1 1 Known Exits Taken 1 | . 1 . . . Unknown Exits Taken 3 | 1 . 1 1 . Scrap Searched 3 | . . . . 3 Spaces Dug . | . . . . . Terrain Destroyed 10 | . . 10 . . Melee . | . . . . . Projectile . | . . . . . AOE 10 | . . 10 . . Terrain Rammed . | . . . . . Walls Destroyed . | . . . . . Machines Disabled . | . . . . . Actions | -11 -10 -10 -10 -9 --------- Run | Jun Mat Min Exi Min Total 2057 | 91 413 296 979 278 Wait 106 | . 51 39 15 1 Move 1861 | 75 336 218 959 273 Hop . | . . . . . Pick Up 14 | 4 6 3 1 . Fast Attach 11 | 6 3 1 1 . Attach 2 | . . 2 . . Detach 1 | . 1 . . . Swap 12 | 1 4 7 . . Drop 17 | . 8 7 2 . Fire 32 | 5 4 19 . 4 Melee . | . . . . . Ram . | . . . . . Kick . | . . . . . Crush . | . . . . . Escape Stasis . | . . . . . Rewire 1 | . . . 1 . Trap . | . . . . . Miscellaneous . | . . . . . Route ------- -11/Junkyard -10/Materials (discovered 3 exits: *Mat x2 / *Min) -10/Mines (discovered 2 exits: *Mat / *Exi) -10/Exiles (discovered 2 exits: [*Min x2]) -9/Mines (discovered 1 exit: [*Mat]) History --------- Turn | Location | Event 2 | -11/Junkyard | Met Revision 17 70 | -11/Junkyard | Discovered new exit (range 8) 110 | -11/Junkyard | Entered Materials 167 | -10/Materials | Discovered new exit (range 16) 221 | -10/Materials | Identified exit to Mines 288 | -10/Materials | Discovered new exit (range 5) 401 | -10/Materials | Repaired Aluminum Leg 493 | -10/Materials | Discovered new exit (range 13) 508 | -10/Materials | Identified exit to Materials 600 | -10/Materials | Entered Mines 633 | -10/Mines | Crushed by falling debris 633 | -10/Mines | Core integrity fell below 50% 678 | -10/Mines | Core integrity fell below 20% 808 | -10/Mines | Found a damaged Exp. Sensor Array with a note attached 811 | -10/Mines | Found Prototype Device 827 | -10/Mines | Received a Mining Laser from a helpful Derelict 881 | -10/Mines | Discovered exit to Materials (range 5) 968 | -10/Mines | Deemed a non-threat by the Exiles lab entrance 968 | -10/Mines | Discovered new exit (range 5) 974 | -10/Mines | Entered Exiles 974 | -10/Exiles | Accompanied by 1 ally 1012 | -10/Exiles | Met 8R-AWN 1017 | -10/Exiles | Build established: Scavenger-Mutant 1030 | -10/Exiles | Met EX-HEX 1106 | -10/Exiles | Met EX-DEC 1136 | -10/Exiles | Learned location of Zion (-7) 1199 | -10/Exiles | Discovered new exit (range 10) 1269 | -10/Exiles | Met EX-BIN 1289 | -10/Exiles | Aligned with FarCom system 1290 | -10/Exiles | Given EX-Vault access code 1512 | -10/Exiles | Discovered new exit (range 15) 1664 | -10/Exiles | Visited The Gauntlet 2145 | -10/Exiles | Entered Mines 2193 | -9/Mines | Learned location of Storage (-7) 2336 | -9/Mines | Discovered new exit (range 7) 2442 | -9/Mines | Build established: Scavenger-Skirmisher 2486 | -9/Mines | Destroyed by S-10 Pest with Light Assault Rifle Last Messages --------------- 02335_ Searching scrap... 02335_ Found Particle Gun. 02335_ Found 29 Matter. 02336_ Acquired 29 matter. 02336_ EXIT=FOUND 02354_ System corrupted: Heat flow error (+184). 02382_ System corrupted: Energy discharge (-35). 02405_ System corrupted: Component data lost. 02422_ E WYW=MSEGDJC3WD1D V 02446_ System corrupted: FCS attempts to trigger Particle Gun. 02446_ System corrupted: Particle Gun misfires. 02447_ Searching scrap... 02447_ Found Hcp. Storage Unit. 02447_ Found 15 Matter. 02448_ Acquired 15 matter. 02473_ S-10 Pest destroyed. 02480_ System corrupted: Energy discharge (-45). 02482_ Acquired 7 matter. 02483_ S-10 Pest destroyed. 02484_ R-06 Scavenger collects Lgt. Assault Rifle. Map ----- +----------------------------------------------------+ | ???????????????????????????????# ??????????## | | ???????????????????????????????# ?????????## | | ???????????????????????????????? ????????## | | ???????????????????????????????? ????????# | | ????????????????????????????????? ???????## | | ???????????????????????????#????? #???????# | | ???????????????????????????# ????# #???????# | | ???????????????????????????# ????# ##??????## ## | | ????????####?????####?????## ????# ##??????# ### | | ???????## ##???## ##????# #??## #??????# [#?# | | ??????## ##?## ###??# ### !##?????# #?# | | ?????## ### ##??# #?????# #?? | | ?????# #???# #?????# #?? | | ?????# #???## ## #?????# #?? | | ?###### #?????# ##### #??#### #?? | | ## ## #???????# #??## #?# ## #?? | | # #???##### #?## ## # #?? | | # ##??# #?# ## #?? | | ####### #### #?# ### #?? | | # #????## ####?# #?# #?? | | ## ##?????##### ##### #????## #?# #?? | | ?#### #?????????## #???# #?????## #?# #?? | | ????# #????????## #???# #??????# ##?# #?? | | ??### #???????## #???# #??????# ####??# #?? | | ??# #?????### #####s #??????# #?????# #?? | | ??# ###????## [@r #??????# #?????# #?? | | #?# #??????# k = %=#??????# #?????# #?? | | ### #??????# #######??????# #?????# #?? | | ## ######## ?##?########### ##??### #?? | | ### #### #?? | | * #### ### | | ################??## ### | | ##??????????????????#### ##?# """" | | #??????????????????????## ##??## #### """" | | ????????????????????????# #????# #??## """" | | #???????????????????????# #???# #???# ### | | #???????????????????????## ##### #???## ####?? | | #????????????????????????## #????####????? | | #?????????????????????????## #????????????? | | ???????????????????????????##########????????????? | | ?????????????????????????????????????????????????? | | ?????????????????????????????????????????????????? | | ?????????????????????????????????????????????????? | | | | | | | | | | | | | | | +----------------------------------------------------+ Best States ------------- Heat Dissipation 39 Energy Generation 14 Energy Capacity 250 Matter Stores 300 Matter Capacity 300 Sight Range 16 Robot Scan Range 14 Terrain Scan Density 10 Evasion (%) 55 Item Schematics ----------------- None Robot Schematics ------------------ None Fabricated ------------ Nothing Alien Tech Used ----------------- None Achievements -------------- Tourist Unlikely Earthworm Challenges ------------ None Game ------ Seed CryofiberNavigationPlating Manual? 0 Play Time 00:42:41 Cumulative 2.2 hours Start 2024.01.29 @ 09:31:41 End 2024.01.29 @ 22:47:44 Sessions 1 Manual Loads 0 Difficulty Rogue Special Mode None Game No. 2 Rogue 2 Adventurer 0 Explorer 0 Win Type - Total 0 Types 0/0/0/0/0/0/0/0/0 Lore% 9 Gallery% 2 Achievement% 5 Wizard Run 0 Options --------- ASCII 0 Keyboard 0 Movement Numpad Keybinds 0 Fullscreen 1 Font 18/SmallcapsGlow Map View 76x50 Tactical HUD 1 Map Filters NONE Filters NONE Steam 1 RUN: df260e19-703b-4f23-b34b-0acf0be23447